Cogmind - Beta 15 --- EXPLORER MODE // 2025.05.06 @ 19:11:35 // Winter2019/RPGLIKE Player: Agod Result: Self-destructed Performance ------------- Evolutions (3) 1500 Regions Visited (6) 1200 Robots Destroyed (28) 140 Value Destroyed (540) 540 Prototype IDs (23) 460 Alien Tech Used (0) 0 Bonus (300) 300 TOTAL SCORE: 4140 Bonus ------- Aligned with FarCom 300 Cogmind --------- Core Integrity 750/750 Matter 290/300 Energy 160/160 System Corruption 0% Temperature Cool (0) Movement Walking (120) Location -7/Factory Parts ------- > --- POWER (1) -------- Light Nuclear Core > --- PROPULSION (3) --- Aluminum Leg Aluminum Leg Improved Aluminum Leg > --- UTILITY (6) ------ Improved Heat Sink Improved Signal Interpreter Improved Terrain Scanner Targeting Computer Light Armor Plating PSU Rigger > --- WEAPON (2) ------- Guided Plasma Cannon Light Cannon > --- INVENTORY (7) ---- Medium Laser Rocket Launcher Peak State ------------ > --- POWER ------------ Light Nuclear Core > --- PROPULSION ------- Aluminum Leg Aluminum Leg Improved Aluminum Leg > --- UTILITY ---------- Improved Heat Sink Improved Signal Interpreter Improved Terrain Scanner Targeting Computer Light Armor Plating PSU Rigger > --- WEAPON ----------- Guided Plasma Cannon Light Cannon > --- INVENTORY -------- Medium Laser Rocket Launcher [Rating: 35] Favorites ----------- Power Light Nuclear Core Engine Ion Engine Power Core Light Nuclear Core Propulsion Aluminum Leg Leg Aluminum Leg Utility Light Armor Plating Device Improved Terrain Scanner Processor Targeting Computer Protection Light Armor Plating Weapon Light Cannon Energy Gun Medium Laser Energy Cannon Guided Plasma Cannon Ballistic Gun Light Assault Rifle Ballistic Cannon Light Cannon Build | -11 -10 -10 -10 -9 -8 -7 ------- Run | Yrd Mat Min Exi Min Mat Fac Slots Evolved 8 | 5 . 1 . . 2 . Power . | . . . . . . . Propulsion 2 | 1 . . . . 1 . Utility 5 | 3 . 1 . . 1 . Weapon 1 | 1 . . . . . . Parts Attached 19 | 10 2 2 2 1 1 1 Power 2 | 1 1 . . . . . Engine 1 | 1 . . . . . . Core 1 | . 1 . . . . . Reactor . | . . . . . . . Propulsion 4 | 2 . 1 . 1 . . Treads . | . . . . . . . Leg 4 | 2 . 1 . 1 . . Wheel . | . . . . . . . Hover . | . . . . . . . Flight . | . . . . . . . Utility 9 | 5 . 1 1 . 1 1 Device 4 | 2 . . 1 . 1 . Storage . | . . . . . . . Processor 3 | 1 . 1 . . . 1 Hackware . | . . . . . . . Protection 2 | 2 . . . . . . Artifact . | . . . . . . . Weapon 4 | 2 1 . 1 . . . Energy Gun 1 | 1 . . . . . . Energy Cannon 1 | . . . 1 . . . Ballistic Gun 1 | 1 . . . . . . Ballistic Cannon 1 | . 1 . . . . . Launcher . | . . . . . . . Special Weapon . | . . . . . . . Impact Weapon . | . . . . . . . Slashing Weapon . | . . . . . . . Piercing Weapon . | . . . . . . . Special Melee Weapon . | . . . . . . . Unidentified Prototypes . | . . . . . . . Parts Lost . | . . . . . . . Power . | . . . . . . . Propulsion . | . . . . . . . Utility . | . . . . . . . Weapon . | . . . . . . . Highest Loss Streak . | . . . . . . . To Critical Strikes . | . . . . . . . Average Backups 3 | 1 3 4 4 4 2 2 Power . | . 1 . . . . . Propulsion . | . . . 1 1 . . Utility 1 | . 1 2 1 1 . . Weapon 1 | . 1 1 1 2 2 2 Tool/Special . | . . . . . . . Unused Backups 5 | . 1 1 1 1 . 1 Power 1 | . . 1 . . . . Propulsion . | . . . . . . . Utility 1 | . . . 1 . . . Weapon 3 | . 1 . . 1 . 1 Tool/Special . | . . . . . . . Average Slot Usage (%) 99 | . 100 100 100 100 99 100 Engine 1 | . 6 . . . . . Core 8 | . 4 10 10 10 8 8 Leg 21 | . 22 20 20 20 24 25 Device 15 | . 11 10 14 20 24 25 Processor 15 | . 11 15 20 20 16 16 Protection 16 | . 22 20 15 10 8 8 Energy Gun 7 | . 11 10 9 10 . . Energy Cannon 2 | . . . . . 7 8 Ballistic Cannon 9 | . 7 10 10 10 8 8 Peak Build Rating 35 | 11 13 14 22 23 33 35 Average Rating 18 | 7 11 13 17 22 32 34 On Entrance 16 | . 11 13 14 22 23 33 Naked Turns . | . . . . . . . Heaviest Build 25 | 13 15 15 16 16 25 25 Greatest Support 33 | 20 20 20 20 23 33 33 Greatest Overweight (x) . | . . . . . . . Average Overweight (x) . | . . . . . . . Largest Inventory Capacity 7 | 4 4 4 4 4 6 7 Average Capacity 4 | 4 4 4 4 4 5 6 Most Carried 4 | 3 4 4 4 4 4 2 Average Carried 3 | 1 3 3 3 4 2 2 Final Capacity 7 | 4 4 4 4 4 6 7 Final Carried 4 | 2 4 4 4 4 2 2 Class Distribution -------------------- 70% | Hacker-Mutant 29% | Hacker-Skirmisher Dominant Class ---------------- Hacker-Mutant | -10/Materials Hacker-Mutant | -10/Mines Hacker-Mutant | -10/Exiles Hacker-Skirmisher | -9/Mines Hacker-Skirmisher | -8/Materials Hacker-Skirmisher | -7/Factory Resources | -11 -10 -10 -10 -9 -8 -7 ----------- Run | Yrd Mat Min Exi Min Mat Fac Matter Collected 679 | 308 221 80 . 30 40 . Remotely . | . . . . . . . Salvage Created 804 | 120 261 215 . . 172 36 Parts 44 | 3 11 18 . . 10 2 Haulers Intercepted 1 | . 1 . . . . . Recyclers Shooed . | . . . . . . . Parts Field Recycled . | . . . . . . . Retrieved Matter . | . . . . . . . Parts Self-Destructed . | . . . . . . . Prevented . | . . . . . . . Kills | -11 -10 -10 -10 -9 -8 -7 ------- Run | Yrd Mat Min Exi Min Mat Fac Combat Hostiles Destroyed 17 | . 4 6 . . 5 2 Guns 4 | . . 4 . . . . Cannons 13 | . 4 2 . . 5 2 Classes Destroyed 9 | 2 3 3 . . 1 . Worker 2 | . . 2 . . . . Builder 1 | . . 1 . . . . Tunneler 2 | 2 . . . . . . Hauler 1 | . 1 . . . . . Recycler 4 | 1 1 1 . . 1 . Watcher 1 | . 1 . . . . . Swarmer 9 | . . 4 . . 3 2 Grunt 6 | . 4 2 . . . . Sentry 2 | . . . . . 2 . Best Kill Streak 4 | 2 3 3 . . 4 2 Combat Bots Only 3 | . 2 2 . . 3 2 Max Kills in Single Turn 1 | 1 1 1 . . 1 1 Gunslinging . | . . . . . . . Exploded . | . . . . . . . Melee . | . . . . . . . Uniques/NPCs Destroyed . | . . . . . . . Combat | -11 -10 -10 -10 -9 -8 -7 -------- Run | Yrd Mat Min Exi Min Mat Fac Hostile Shots Fired 42 | . 17 13 . . 12 . Missed 15 | . 6 5 . . 4 . Hits 27 | . 11 8 . . 8 . Projectile 27 | . 11 8 . . 8 . Critical Strikes 1 | . . . . . 1 . Damage Taken 161 | . 80 40 . . 41 . Core 106 | . 55 26 . . 25 . Absorbed by Shields . | . . . . . . . Redirected to Core 94 | . 46 26 . . 22 . Ignored by Resistances 110 | . 51 29 . . 30 . Core Remaining (%) 99 | 100 . . . 98 100 . Volleys Fired 64 | 8 26 15 . . 11 4 Largest 2 | 2 2 2 . . 1 1 Hottest 120 | 70 80 80 . . 120 120 Shots Fired 111 | 16 50 30 . . 11 4 Gun 56 | 16 25 15 . . . . Cannon 55 | . 25 15 . . 11 4 Launcher . | . . . . . . . Special . | . . . . . . . Kinetic 49 | 8 26 15 . . . . Thermal 62 | 8 24 15 . . 11 4 Explosive . | . . . . . . . Electromagnetic . | . . . . . . . Robot Hit Streak 20 | 14 20 11 . . 18 20 Robot Miss Streak 2 | . 2 1 . . . . Penetration Max . | . . . . . . . Secondary Targets . | . . . . . . . Shots Hit Robots 84 | 14 38 23 . . 7 2 Core Hits 36 | 5 11 12 . . 6 2 Critical Kills . | . . . . . . . Critical Parts Destroyed . | . . . . . . . Critical Strikes 7 | 2 3 2 . . . . Burn 6 | 2 3 1 . . . . Blast 1 | . . 1 . . . . Melee Attacks . | . . . . . . . Impact . | . . . . . . . Slashing . | . . . . . . . Piercing . | . . . . . . . Sneak Attacks . | . . . . . . . Combat Hostiles . | . . . . . . . Follow-up Attacks . | . . . . . . . Damage Inflicted 1679 | 148 617 349 . . 421 144 Guns 565 | 148 247 170 . . . . Cannons 1114 | . 370 179 . . 421 144 Explosions . | . . . . . . . Melee . | . . . . . . . Ramming . | . . . . . . . Kinetic 596 | 47 370 179 . . . . Thermal 1083 | 101 247 170 . . 421 144 Explosive . | . . . . . . . Electromagnetic . | . . . . . . . Impact . | . . . . . . . Slashing . | . . . . . . . Piercing . | . . . . . . . Highest Corruption . | . . . . . . . Average Corruption . | . . . . . . . Corruption Purged . | . . . . . . . Corruption Blocked . | . . . . . . . Overload Shots . | . . . . . . . Overflow Damage 50 | . 6 . . . 31 13 Projectiles 50 | . 6 . . . 31 13 Explosions . | . . . . . . . Melee . | . . . . . . . Knockbacks 7 | . 6 1 . . . . Impact . | . . . . . . . Kinetic 6 | . 5 1 . . . . Secondary 1 | . 1 . . . . . Self-Inflicted Damage . | . . . . . . . Shots . | . . . . . . . Rammed . | . . . . . . . Targets Rammed . | . . . . . . . Kicked . | . . . . . . . Crushed . | . . . . . . . Highest Temperature 156 | 50 129 93 . . 156 26 Average Temperature 42 | 19 53 28 . . 61 19 Received Heat Transfer 96 | . 78 18 . . . . Siege Activations . | . . . . . . . Martial Activations . | . . . . . . . Shielding Activations . | . . . . . . . Robots Disrupted . | . . . . . . . Combat Hostiles . | . . . . . . . Robots Corrupted . | . . . . . . . Combat Hostiles . | . . . . . . . Parts Fried . | . . . . . . . Impact Corruptions . | . . . . . . . Robots Melted . | . . . . . . . Combat Hostiles . | . . . . . . . Parts Melted 9 | 4 2 . . . 3 . Heat Transferred 2964 | 444 925 555 . . 800 240 Parts Sabotaged . | . . . . . . . Parts Stolen . | . . . . . . . Parts Stripped . | . . . . . . . Power Chain Reactions . | . . . . . . . Alert | -11 -10 -10 -10 -9 -8 -7 ------- Run | Yrd Mat Min Exi Min Mat Fac Maximum Alert Level . | . . . . . . . Low Security (%) 100 | 100 100 100 . 100 100 100 Level 1 . | . . . . . . . Level 2 . | . . . . . . . Level 3 . | . . . . . . . Level 4 . | . . . . . . . Level 5 . | . . . . . . . High Security . | . . . . . . . Max Security . | . . . . . . . Peak Influence 75 | 10 57 70 . . 75 50 Initial 6 | . . 6 . . . 5 Average 9 | 1 13 8 . . 15 6 Influence Increases 570 | 15 153 170 . . 162 70 Destroy 0b10 Robot/C 340 | . 80 120 . . 100 40 Destroy 0b10 Robot/NC 55 | 15 15 20 . . 5 . Destroy Leader 94 | . 24 30 . . 30 10 Successful Hack 42 | . 15 . . . 11 16 Disable Machine 8 | . 4 . . . . 4 Destroy Structure 1 | . . . . . 1 . Lose Combat Pursuer 30 | . 15 . . . 15 . Influence Decreases 519 | 15 129 194 . . 145 36 Entered New Map 30 | . . 18 . . . 12 Time Decay 489 | 15 129 176 . . 145 24 Squads Dispatched 4 | . . . . . 4 . Investigation . | . . . . . . . Extermination . | . . . . . . . Reinforcement 1 | . . . . . 1 . Assault . | . . . . . . . Garrison 3 | . . . . . 3 . Intercept . | . . . . . . . Searches Triggered . | . . . . . . . Construction Impeded . | . . . . . . . Haulers Reinforced . | . . . . . . . Active Scanning Responses . | . . . . . . . Cargo Convoy Interrupts . | . . . . . . . Stealth | -11 -10 -10 -10 -9 -8 -7 --------- Run | Yrd Mat Min Exi Min Mat Fac Distress Signals 3 | . . . . . 2 1 Communications Jammed . | . . . . . . . Distress Signals . | . . . . . . . Times Spotted 24 | . 10 6 . . 5 3 Peak Tracking Total 4 | . 3 2 . . 3 4 Tactical Retreats 2 | . 1 . . . 1 . Traps | -11 -10 -10 -10 -9 -8 -7 ------- Run | Yrd Mat Min Exi Min Mat Fac Traps Triggered . | . . . . . . . Indirectly . | . . . . . . . Trap Hack Attempts . | . . . . . . . Triggered . | . . . . . . . Disarmed . | . . . . . . . Reprogrammed . | . . . . . . . Reused . | . . . . . . . Traps Extracted . | . . . . . . . Installed 3 | . . 3 . . . . Triggered . | . . . . . . . Machines | -11 -10 -10 -10 -9 -8 -7 ---------- Run | Yrd Mat Min Exi Min Mat Fac Machines Disabled 2 | . 1 . . . . 1 Max in Single Turn 1 | . 1 . . . . 1 Machines Repaired . | . . . . . . . Machines Dismantled . | . . . . . . . Machines Sabotaged . | . . . . . . . Overloaded Fab Kills . | . . . . . . . Hacking | -11 -10 -10 -10 -9 -8 -7 --------- Run | Yrd Mat Min Exi Min Mat Fac Machines Accessed 10 | . 3 . 1 . 4 2 Terminals 8 | . 3 . . . 3 2 Fabricators . | . . . . . . . Repair Stations . | . . . . . . . Recycling Units 1 | . . . . . 1 . Scanalyzers . | . . . . . . . Garrison Access . | . . . . . . . Total Hacks 26 | . 11 . 1 . 11 3 Successful 19 | . 8 . 1 . 8 2 Failed 7 | . 3 . . . 3 1 Catastrophic 1 | . 1 . . . . . Database Lockouts . | . . . . . . . Manual 24 | . 11 . 1 . 9 3 Terminals 24 | . 11 . . . 10 3 Fabricators . | . . . . . . . Repair Stations . | . . . . . . . Recycling Units 1 | . . . . . 1 . Scanalyzers . | . . . . . . . Garrison Access . | . . . . . . . Terminal Hacks 12 | . 6 . 1 . 4 1 Robot Analysis 5 | . 3 . . . 2 . Branch Access Points 3 | . 1 . . . 1 1 Zone Layout 3 | . 2 . . . 1 . Proto ID Catalog 1 | . . . 1 . . . Fabricator Hacks . | . . . . . . . Repair Station Hacks . | . . . . . . . Recycling Unit Hacks 1 | . . . . . 1 . Retrieve Components 1 | . . . . . 1 . Scanalyzer . | . . . . . . . Garrison Access Hacks . | . . . . . . . Unauthorized Hacks 6 | . 2 . . . 3 1 Terminals 6 | . 2 . . . 3 1 Botnet 5 | . 2 . . . 2 1 Operators 1 | . . . . . 1 . Fabricators . | . . . . . . . Repair Stations . | . . . . . . . Recycling Units . | . . . . . . . Scanalyzers . | . . . . . . . Garrison Access . | . . . . . . . Data Cores Recovered . | . . . . . . . Used . | . . . . . . . Hacking Detections 9 | . 3 . . . 5 1 Full Trace Events 1 | . . . . . 1 . Feedback Events . | . . . . . . . Feedback Blocked . | . . . . . . . Robot Schematics Acquired . | . . . . . . . Robots Built . | . . . . . . . Authchips . | . . . . . . . Time . | . . . . . . . Total Robot Build Rating . | . . . . . . . Part Schematics Acquired . | . . . . . . . Parts Built . | . . . . . . . Authchips . | . . . . . . . Time . | . . . . . . . Total Part Build Rating . | . . . . . . . Parts Repaired . | . . . . . . . Time . | . . . . . . . Parts Recycled . | . . . . . . . Recycled Matter . | . . . . . . . Retrieved Matter . | . . . . . . . Retrieved Components 4 | . . . . . 4 . Parts Scanalyzed . | . . . . . . . Part Schematics Acquired . | . . . . . . . Parts Damaged . | . . . . . . . Bothacking | -11 -10 -10 -10 -9 -8 -7 ------------ Run | Yrd Mat Min Exi Min Mat Fac Used RIF Installer . | . . . . . . . Robots Hacked . | . . . . . . . Non-combat . | . . . . . . . Combat . | . . . . . . . Robot Hacks Applied . | . . . . . . . Relay Couplers Released . | . . . . . . . Fabnet Peak Effective % . | . . . . . . . Robots Rewired . | . . . . . . . Allies Hacked . | . . . . . . . Hacks Repelled . | . . . . . . . Allies | -11 -10 -10 -10 -9 -8 -7 -------- Run | Yrd Mat Min Exi Min Mat Fac Total Allies 1 | . . 1 . . . . Largest Group 1 | . . 1 1 . . . Highest-Rated Group 31 | . . 31 31 . . . Highest-Rated Ally 31 | . . 31 31 . . . Total Orders . | . . . . . . . Ally Attacks . | . . . . . . . Total Damage . | . . . . . . . Kills . | . . . . . . . Allies Corrupted . | . . . . . . . Allies Melted . | . . . . . . . Intel | -11 -10 -10 -10 -9 -8 -7 ------- Run | Yrd Mat Min Exi Min Mat Fac Active Infowar (turns) 2022 | 97 356 724 260 86 416 83 Terrain 2022 | 97 356 724 260 86 416 83 Robot Analysis Total 5 | . 3 . . . 2 . Derelict Logs Recovered 1 | . . 1 . . . . Drone Launches . | . . . . . . . Drone Recoveries . | . . . . . . . Exploration | -11 -10 -10 -10 -9 -8 -7 ------------- Run | Yrd Mat Min Exi Min Mat Fac Turns Passed 2061 | 136 356 724 260 86 416 83 Spaces Moved 1504 | 86 223 547 212 69 306 61 Core 9 | 9 . . . . . . Treads . | . . . . . . . Legs 1495 | 77 223 547 212 69 306 61 Wheels . | . . . . . . . Hover . | . . . . . . . Flight . | . . . . . . . Fastest Speed 50 | 50 120 120 120 120 120 120 Average Speed 119 | 112 120 120 120 120 120 120 Slowest Speed 120 | 120 120 120 120 120 120 120 Overloaded Moves . | . . . . . . . Propulsion Burnouts . | . . . . . . . Robots Hopped . | . . . . . . . Potential Cave-ins . | . . . . . . . Cave-ins Triggered . | . . . . . . . Exploration Rate (%) 36 | 4 41 98 60 21 30 3 Regions Visited 6 Branch Regions 3 Pre-discovered Areas . | . . . . . . . Known Exits Taken 6 | 1 1 1 1 1 1 . Unknown Exits Taken . | . . . . . . . Scrap Searched 3 | . . 2 . 1 . . Spaces Dug 1 | . . . . . 1 . Terrain Destroyed 1 | . . . . . 1 . Melee . | . . . . . . . Projectile 1 | . . . . . 1 . AOE . | . . . . . . . Terrain Rammed . | . . . . . . . Walls Destroyed . | . . . . . . . Machines Disabled . | . . . . . . . Actions | -11 -10 -10 -10 -9 -8 -7 --------- Run | Yrd Mat Min Exi Min Mat Fac Total 1651 | 106 262 584 217 73 343 66 Wait 31 | . 2 10 . 1 18 . Move 1498 | 85 222 546 211 68 305 61 Hop . | . . . . . . . Pick Up 9 | 2 3 2 1 1 . . Fast Attach 13 | 9 2 . 1 1 . . Attach 3 | . . 1 . . 2 . Detach . | . . . . . . . Swap 6 | 1 . 1 2 . 1 1 Drop 9 | 1 3 1 2 2 . . Fire 64 | 8 26 15 . . 11 4 Melee . | . . . . . . . Ram . | . . . . . . . Kick . | . . . . . . . Crush . | . . . . . . . Escape Stasis . | . . . . . . . Rewire . | . . . . . . . Trap 3 | . . 3 . . . . Miscellaneous 15 | . 4 5 . . 6 . Route ------- -11/Scrapyard -10/Materials (discovered 2 exits: *Mat / *Min) -10/Mines (discovered 3 exits: *Mat x2 / *Exi) -10/Exiles -9/Mines -8/Materials (discovered 2 exits: *Fac x2) -7/Factory (discovered 2 exits: Low x2) History --------- Turn | Location | Event 1 | -11/Scrapyard | Upgraded with Propulsion slot (x1) 1 | -11/Scrapyard | Upgraded with Utility slot (x3) 1 | -11/Scrapyard | Upgraded with Weapon slot (x1) 4 | -11/Scrapyard | Identified exit to Materials 4 | -11/Scrapyard | Discovered exit to Materials (range 16) 137 | -11/Scrapyard | Entered Materials 160 | -10/Materials | Identified exit to Mines 311 | -10/Materials | Build established: Hacker-Mutant 324 | -10/Materials | Identified exit to Materials 324 | -10/Materials | Discovered exit to Materials (range 10) 493 | -10/Materials | Entered Mines 567 | -10/Mines | Found a hidden stash of uninstalled traps 626 | -10/Mines | Discovered exit to Materials (range 13) 629 | -10/Mines | YI-UF0 nonchalantly dropped a Grenade Launcher on the ground 651 | -10/Mines | Discovered exit to Materials (range 8) 831 | -10/Mines | Reached level 2 848 | -10/Mines | Upgraded with Utility slot (x1) 976 | -10/Mines | Learned Materials emergency access door positions 1188 | -10/Mines | Received a Mining Laser from a helpful Derelict 1211 | -10/Mines | Deemed a non-threat by the Exiles lab entrance 1211 | -10/Mines | Identified exit to Exiles 1211 | -10/Mines | Discovered exit to Exiles (range 5) 1217 | -10/Mines | Entered Exiles 1217 | -10/Exiles | Accompanied by 1 ally 1246 | -10/Exiles | Met 8R-AWN 1268 | -10/Exiles | Met EX-HEX 1300 | -10/Exiles | Met EX-BIN 1315 | -10/Exiles | Aligned with FarCom system 1316 | -10/Exiles | Given EX-Vault access code 1347 | -10/Exiles | Opened EX-Vault 1355 | -10/Exiles | Found Gui. Plasma Cannon 1362 | -10/Exiles | Found PSU Rigger 1387 | -10/Exiles | Warned to stay clear of 0b10 Research branches 1424 | -10/Exiles | Met EX-DEC 1466 | -10/Exiles | Identified exit to Mines 1466 | -10/Exiles | Discovered exit to Mines (range 11) 1477 | -10/Exiles | Stole two prototypes: PSU Rigger, Gui. Plasma Cannon 1477 | -10/Exiles | Entered Mines 1518 | -9/Mines | Received a Rocket Launcher from a helpful Derelict 1543 | -9/Mines | Identified exit to Materials 1543 | -9/Mines | Discovered exit to Materials (range 8) 1563 | -9/Mines | Entered Materials 1565 | -8/Materials | Reached level 3 1565 | -8/Materials | Reached level 4 1565 | -8/Materials | Reached level 5 1565 | -8/Materials | Reached level 6 1572 | -8/Materials | Upgraded with Propulsion slot (x1) 1574 | -8/Materials | Upgraded with Utility slot (x1) 1665 | -8/Materials | Garrison activated, responded to threat 1747 | -8/Materials | Identified exit to Factory 1747 | -8/Materials | Discovered exit to Factory (range 16) 1763 | -8/Materials | Build established: Hacker-Skirmisher 1888 | -8/Materials | Reached level 7 1938 | -8/Materials | Met 7R-MNS 1938 | -8/Materials | Discovered exit to Factory (range 16) 1979 | -8/Materials | Entered Factory 1980 | -7/Factory | Caught up to 7R-MNS 1981 | -7/Factory | FarCom data flow suspended 1981 | -7/Factory | Reached level 8 1981 | -7/Factory | Reached level 9 2062 | -7/Factory | Identified exit to Lower Caves 2062 | -7/Factory | Self-destructed Last Messages --------------- 02015_ Discarded Signal Interpreter. 02018_ ALERT: All DSF locations entering lockdown mode. 02018_ Destroyed Imp. Hover Unit. 02040_ Connecting with Terminal... >>Trojan(Botnet) Trojan loaded successfully. Testing... Terminal linked with 0 systems. Awaiting botnet instructions. 02051_ S-27 Virus destroyed. 02051_ K-01 Serf collects debris. 02054_ S-27 Virus destroyed. 02056_ K-01 Serf destroyed. 02062_ Connecting with Terminal... >>Access(Branch) Found 2 branch access points: (196,38) Lower Caves (179,108) Lower Caves Map updated. Map ----- +----------------------------------------------------+ | ???????????????????????????????????????????? | | ???????????????????????????????????????????? | | ???????????????????????????????????????????? | | ???????????????????????????????????????????? | | ???????????????????????????????????????????? | | ???????????????????????????????????????????? | | ???????????????????????????????????????????? | | ???????????????????????????????????????????? | | ???????????????????????????????????????????? | | ???????????????????????????????????????????? | | ?????????????????????? ????????????????????? | | ?????????????????????? ???? #????????????? | | ???????????????? ???? ??" #???????????? | | ??????????????? ??? ?? #???????????? | | ???????????????? """ ??" +???????????? | | ???????????????? """ ?"" #???????????? | | ??????????????? """ """ #???????????? | | ???????????????? #??#????????? | | ????????????????? """ #????????>??? | | ???????????????? """ #???????????? | | ???????????????# """ #???????????? | | ???????????????# #???????????? | | ???????????????# """ ###?#???????? | | ?????????####### """ #???????#?? | | ???????? """ """ #?????????? | | ???????? @T" #?????????? | | ???????? % """ #?????????? | | ???????? !=%= g #?????????? | | ???????? =%*%% #?????????? | | ?????????####################### #???????? ? | | ?????????????????????????????### ###????" # | | ???????????????????????#?????# *#??""" # | | ?????????????????????????????# "" # # | | ???????????????????????#?????# T + """ # | | ?????????????????????????????# # """ # | | ?????????????????????????????# #??""" # | | ?????????????????????????????## ##???? ? | | ???????????????????#??????????# #??? ?? # | | ??????????????????????????#???# #? ??????? | | ???????????????????????######?# #????????? | | ??????????????????????? ??# #????????? | | ?????????????????????????# ??# #????????? | | ?????????????????????????# ### #????????? | | ?????????????????????????# #??????#?? | | ???????????????????????### #????????? | | ?????????????????????????# ##???#???? | | ?????????????????????????# """ #????????? | | ?????????????????????"???# """ #????????? | | ?????????????????????????+ """ #????????? | | ?????????????????????????# #????????? | +----------------------------------------------------+ Best States ------------- Heat Dissipation 57 Energy Generation 14 Energy Capacity 250 Matter Stores 300 Matter Capacity 300 Sight Range 17 Robot Scan Range 12 Terrain Scan Range 16 Terrain Scan Density 10 Armor Coverage 150 Resistance: KI 35 Resistance: TH 35 Resistance: EX 35 Resistance: EM 35 Resistance: I 35 Resistance: S 35 Resistance: P 35 Utility Shielding 33 Evasion (%) 55 Targeting Accuracy 5 Offensive Hacking 20 Item Schematics ----------------- None Robot Schematics ------------------ None Fabricated ------------ Nothing Repaired ---------- Nothing Alien Tech Used ----------------- None Achievements -------------- None Challenges ------------ None RPGLIKE | -11 -10 -10 -10 -9 -8 -7 --------- Run | Yrd Mat Min Exi Min Mat Fac Levels Raised 8 | . . 1 . . 5 2 XP Earned 19055 | 6000 530 1250 350 843 6365 3717 XP Spent 17990 | 5975 . 1525 . . 7460 3030 Upgrades 32 | 11 . 3 . . 13 5 Propulsion Slot 2 | 1 . . . . 1 . Utility Slot 5 | 3 . 1 . . 1 . Weapon Slot 1 | 1 . . . . . . Core Integrity 3 | 1 . . . . . 2 Heat Dissipation 3 | 1 . . . . 2 . Inventory Capacity 7 | 4 . . . . 2 1 Sight Range 1 | . . . . . . 1 Sensor Range 6 | . . 2 . . 4 . TH Damage % 4 | . . . . . 3 1 Protomatter Created 158 | . 21 31 . . 77 29 Integrity Restored 236 | . 56 78 . . 102 . Core 106 | . 35 35 . . 36 . Parts 130 | . 21 43 . . 66 . Protomatter Decayed 252 | . . 2 . . 250 . Game ------ Seed LaserMiniArray Manual? 0 Play Time 00:25:29 Cumulative 121.3 hours Start 2025.05.06 @ 18:38:59 End 2025.05.06 @ 19:11:35 Sessions 1 Manual Loads 0 Difficulty Explorer Special Mode Winter2019/RPGLIKE Game No. 27 Rogue 0 Adventurer 0 Explorer 27 Win Type - Total 11 Types 5/1/3/0/0/0/0/1/1/0 Lore% 49 Gallery% 50 Achievement% 70 Wizard Run 0 Options --------- Layout 2 ASCII 0 Keyboard 1 Movement Numpad Keybinds 0 Fullscreen 1 Font 24/Smallcaps Map View 50x44 Zoom Use 0% Tactical HUD 1 Map Filters NONE Filters NONE Steam 1 RUN: 589582dd-8d4b-49ba-8cb7-a78dbf27ec50